bitfinex/quotes_SOLUSD_20260113
["timestamp","ask_amount","ask_price","bid_price","bid_amount"]
[1768310702873,3.18404065,141.75,141.72,0.68348822]
[1768310703190,3.18404065,141.76,141.72,7.73958824]
[1768310704680,10.23836024,141.76,141.73,0.71331342]
[1768310704877,10.23836024,141.76,141.72,7.05610002]
[1768310705082,10.23836024,141.76,141.72,7.76941344]
[1768310707299,10.23836024,141.76,141.73,0.71331342]
[1768310707972,3.18404065,141.76,141.73,0.71331342]
[1768310709195,7.05390058,141.77,141.73,0.71331342]
[1768310709397,3.18404065,141.76,141.73,0.71331342]
[1768310710199,3.18404065,141.77,141.73,0.71331342]
[1768310712599,3.18404065,141.76,141.73,0.71331342]
[1768310713292,3.18404065,141.77,141.74,0.71331342]
[1768310714108,10.23672419,141.79,141.74,0.71331342]
[1768310714878,10.23672419,141.79,141.75,0.71331342]
[1768310718305,7.05268354,141.79,141.75,0.71331342]
[1768310718502,10.23672419,141.79,141.75,0.71331342]
[1768310720512,3.18404065,141.77,141.75,0.71331342]
[1768310720828,3.18404065,141.77,141.74,0.6609496]
[1768310721322,3.18404065,141.76,141.74,0.6609496]
[1768310721793,17.63265582,141.79,141.74,0.6609496]
[1768310721794,24.68533936,141.79,141.74,0.6609496]
[1768310721995,3.18404065,141.77,141.74,0.6609496]
[1768310726199,3.18404065,141.77,141.75,0.6609496]
[1768310727723,3.18404065,141.77,141.74,7.7161022]
[1768310728100,7.0535018,141.78,141.74,7.7161022]
[1768310728400,3.18404065,141.77,141.74,7.7161022]
[1768310730626,3.18404065,141.78,141.74,7.7161022]
[1768310731327,24.68533936,141.79,141.74,7.7161022]
[1768310731520,10.23734856,141.78,141.74,7.7161022]
[1768310731827,10.23734856,141.78,141.75,0.6609496]
[1768310732701,3.18404065,141.79,141.76,0.6609496]
[1768310733823,3.18404065,141.78,141.76,0.6609496]
[1768310735621,3.18404065,141.78,141.75,7.71449941]
[1768310735933,3.18404065,141.78,141.75,0.6598878]
[1768310736133,3.18404065,141.78,141.75,7.71453115]
[1768310736717,3.18404065,141.77,141.73,0.6598878]
[1768310736919,3.18404065,141.77,141.74,0.6598878]
[1768310737225,3.18404065,141.76,141.73,0.6598878]
[1768310737740,3.18404065,141.75,141.73,0.6598878]
[1768310738122,3.18404065,141.76,141.73,7.71550538]
[1768310738322,3.18404065,141.76,141.74,0.6598878]
[1768310739726,17.63295246,141.78,141.74,0.6598878]
[1768310739928,3.18404065,141.76,141.74,0.6598878]
[1768310740129,3.18404065,141.77,141.74,0.6598878]
[1768310740731,10.23801545,141.77,141.74,0.6598878]
[1768310741442,10.23801545,141.77,141.7,17.64282261]
[1768310741745,3.18404065,141.76,141.72,0.6598878]
[1768310743149,17.63295246,141.78,141.74,0.6598878]
[1768310743150,20.81699311,141.78,141.74,0.6598878]
[1768310743322,4.73936441,141.77,141.74,0.6598878]
[1768310743522,20.81699311,141.78,141.74,0.6598878]
[1768310743743,4.73942704,141.77,141.74,0.6598878]
[1768310743944,20.81699311,141.78,141.74,0.6598878]
[1768310744136,4.73942704,141.77,141.74,0.6598878]
[1768310744333,7.05385992,141.77,141.74,0.6598878]
[1768310744521,10.2352323,141.82,141.77,0.6598878]
[1768310745130,10.2352323,141.82,141.78,0.6598878]
[1768310745529,27.863445,141.82,141.78,0.6598878]
[1768310748046,27.863445,141.82,141.76,0.6598878]
[1768310748242,3.18404065,141.81,141.77,0.6598878]
[1768310749339,17.6282127,141.82,141.77,0.6598878]
[1768310749537,3.18404065,141.81,141.77,0.6598878]
[1768310750053,20.81225335,141.82,141.78,0.6598878]
[1768310750951,27.863445,141.82,141.78,0.6598878]
[1768310751550,24.67940435,141.82,141.78,0.6598878]
[1768310751750,27.863445,141.82,141.78,0.6598878]
[1768310753853,24.67940435,141.82,141.78,0.6598878]
[1768310754055,27.863445,141.82,141.78,0.6598878]
[1768310754250,24.67940435,141.82,141.78,0.6598878]
[1768310754443,27.863445,141.82,141.78,0.6598878]
[1768310755952,17.6282127,141.82,141.78,0.6598878]
[1768310756135,20.81225335,141.82,141.78,0.6598878]
[1768310759360,27.863445,141.82,141.78,0.6598878]
[1768310761750,7.05119165,141.82,141.79,0.6598878]
[1768310762062,10.2352323,141.82,141.79,0.6598878]
[1768310763356,9.08894803,141.82,141.79,0.6598878]
[1768310763960,7.05119165,141.82,141.79,0.6598878]
[1768310765466,26.71569151,141.83,141.79,0.6598878]
[1768310766669,24.67793513,141.83,141.79,0.6598878]
[1768310766969,26.71569151,141.83,141.79,0.6598878]
[1768310767376,24.67793513,141.83,141.79,0.6598878]
[1768310767668,24.67793513,141.83,141.8,0.71417281]
[1768310768251,110.45040448,141.84,141.82,0.71417281]
[1768310768451,110.45040448,141.84,141.82,0.65417281]
[1768310768649,7.12413979,141.86,141.82,0.65417281]
[1768310768845,32.54031854,141.87,141.79,24.68433903]
[1768310768846,7.12334782,141.87,141.8,2.03775638]
[1768310769048,0.07444692,141.86,141.82,2.03775638]
[1768310769351,7.0489009,141.87,141.82,2.03775638]
[1768310769555,0.07444692,141.86,141.82,9.08862914]
[1768310770169,0.07444692,141.87,141.83,2.03775638]
[1768310770370,7.04831593,141.88,141.84,0.71417281]
[1768310770744,2.03775638,141.87,141.84,0.71417281]
[1768310771148,7.04831593,141.88,141.84,0.71417281]
[1768310771459,2.03775638,141.87,141.84,0.71417281]
[1768310773350,30.49982287,141.89,141.85,0.71417281]
[1768310773351,19.92779511,141.89,141.85,0.71417281]
[1768310773570,22.03999841,141.89,141.85,0.71417281]
[1768310773950,20.00224203,141.89,141.85,0.71417281]
[1768310774147,22.03999841,141.89,141.85,0.71417281]
[1768310774577,9.15999841,141.89,141.85,0.71417281]
[1768310775078,6.49962729,141.96,141.89,34.963761]
[1768310775280,0.1,141.98,141.95,5.71371256]
[1768310775477,0.1,141.99,141.96,2.03775638]
[1768310775653,0.1,142.01,141.96,2.03775638]
[1768310775853,0.75327493,142.02,141.96,2.03775638]
[1768310776180,0.65327493,142.01,141.95,5.71371256]
[1768310776673,9.17921361,142.02,141.95,3.67595618]
[1768310776674,9.7335654,142.0,141.95,3.67595618]
[1768310776978,7.69580902,142.0,141.95,3.67595618]
[1768310777278,0.65327493,142.01,141.95,10.72058492]
[1768310777572,2.69103131,142.0,141.95,3.67595618]
[1768310777751,2.03775638,141.99,141.95,3.67595618]
[1768310778358,2.03775638,141.99,141.95,10.7206647]
[1768310779474,9.73349499,142.0,141.95,10.7206647]
[1768310779670,7.69573861,142.0,141.95,10.7206647]
[1768310779979,2.03775638,141.99,141.95,10.7206647]
[1768310780574,7.04279837,141.99,141.95,3.67595618]
[1768310780750,2.03775638,141.98,141.95,3.67595618]
[1768310781073,7.6960733,141.99,141.94,10.7208779]
[1768310781256,7.6960733,141.99,141.94,7.04513589]
[1768310781783,2.03775638,141.98,141.94,7.04513589]
[1768310782456,2.03775638,141.98,141.92,24.66127574]
[1768310782772,2.03775638,141.98,141.92,26.69903212]
[1768310783162,2.03775638,141.98,141.93,2.03775638]
[1768310783477,2.03775638,141.95,141.91,7.04657599]
[1768310783778,0.65327493,141.96,141.91,7.04657599]
[1768310784075,15.55103131,141.96,141.91,7.04657599]
[1768310784450,2.03775638,141.95,141.9,17.61758577]
[1768310784654,0.65327493,141.94,141.89,9.08546939]
[1768310784869,2.69103131,141.94,141.89,7.04771301]
[1768310785074,2.69103131,141.94,141.89,9.08546939]
[1768310785453,2.03775638,141.94,141.89,9.08546939]
[1768310785651,2.69103131,141.95,141.9,2.03775638]
[1768310785855,2.69103131,141.95,141.89,9.08546939]
[1768310786062,9.73580905,141.95,141.88,24.66823684]
[1768310786261,9.73580905,141.95,141.89,2.03775638]
[1768310786475,0.65327493,141.94,141.89,2.03775638]
[1768310787157,0.65327493,141.94,141.9,7.04721634]
[1768310787360,7.69805267,141.95,141.9,7.04721634]
[1768310787569,9.73580905,141.95,141.9,7.04721634]
[1768310788281,7.69805267,141.95,141.9,2.03775638]
[1768310788582,7.04477774,141.95,141.9,2.03775638]
[1768310788979,7.69805267,141.95,141.88,24.66823684]
[1768310789162,2.69103131,141.94,141.88,26.70599322]
[1768310790476,0.65327493,141.92,141.88,7.04820975]
[1768310792585,2.69103131,141.93,141.88,7.04820975]
[1768310794073,0.65327493,141.93,141.88,7.04820975]
[1768310794362,0.65327493,141.93,141.87,26.70761813]
[1768310794563,0.65327493,141.95,141.89,2.03775638]
[1768310794762,7.72882816,141.97,141.92,2.03775638]
[1768310794984,13.54491665,141.97,141.92,2.03775638]
[1768310795770,0.68491665,141.96,141.92,2.03775638]
[1768310796570,0.68491665,141.96,141.93,7.04572676]
[1768310797690,0.68491665,141.96,141.93,9.08348314]
[1768310800279,0.68491665,141.96,141.93,7.04572676]
[1768310800582,0.68491665,141.96,141.91,19.65357274]
[1768310801172,0.68491665,141.96,141.91,17.61581636]
[1768310801382,2.72267303,141.96,141.91,19.65357274]
[1768310801575,2.72267303,141.96,141.92,7.04622322]
[1768310801891,0.68491665,141.96,141.92,7.04622322]
[1768310804186,0.68491665,141.96,141.92,2.03775638]
[1768310804368,0.68491665,141.96,141.91,19.65357274]
[1768310808216,12.86,141.97,141.91,26.70029249]
[1768310808576,0.68491665,141.96,141.92,2.03775638]
[1768310810206,0.68491665,141.96,141.93,2.03775638]
[1768310810680,0.68491665,141.96,141.92,2.03775638]
[1768310811803,0.68491665,141.96,141.91,19.65357274]
[1768310813011,0.68491665,141.96,141.91,24.66253611]
[1768310813195,0.68491665,141.96,141.91,26.70029249]
[1768310814286,0.68491665,141.96,141.91,24.66253611]
[1768310814485,0.68491665,141.96,141.91,26.70029249]
[1768310817425,0.68491665,141.96,141.93,7.04572676]
[1768310818101,0.18491665,141.96,141.93,7.04572676]
[1768310818494,7.04338585,141.98,141.94,7.54487255]
[1768310819606,7.04225352,142.0,141.95,0.5]
[1768310819808,4.73913249,141.99,141.95,0.5]
[1768310820011,0.68491665,141.99,141.95,0.5]
[1768310820309,0.68491665,141.98,141.95,0.5]
[1768310820521,0.68491665,141.98,141.94,7.04487255]
[1768310820720,0.68491665,141.98,141.95,0.5]
[1768310821695,0.68491665,141.97,141.94,7.04487255]
[1768310821898,7.72820919,141.98,141.94,7.54487255]
[1768310822097,7.72820919,141.98,141.95,0.5]
[1768310827104,0.67107054,142.0,141.96,0.5]
[1768310827297,7.71356351,142.0,141.96,0.5]
[1768310827603,0.67107054,142.0,141.96,0.5]
[1768310827811,3.84769883,142.0,141.96,0.5]
[1768310828893,0.67107054,141.98,141.94,7.5449936]
[1768310829197,0.67107054,141.98,141.95,0.5]
[1768310829718,3.84769883,141.99,141.95,0.5]
[1768310830223,10.89048235,141.99,141.95,7.54470873]
[1768310831906,0.77107054,142.02,141.97,3.17662829]
[1768310832107,0.77107054,142.02,141.96,3.17662829]
[1768310832314,0.67107054,142.01,141.95,3.17662829]
[1768310832806,3.84769883,142.01,141.95,3.17662829]
[1768310833013,0.67107054,141.98,141.94,7.04523037]
[1768310833898,7.71440381,141.98,141.93,3.17662829]
[1768310834319,7.71440381,141.98,141.94,3.17662829]
[1768310835003,7.71440381,141.98,141.94,10.22146123]
[1768310835828,7.71440381,141.98,141.94,7.04483294]
[1768310836012,7.71440381,141.98,141.94,10.22146123]
[1768310836207,0.68915175,141.97,141.93,7.04554387]
[1768310836520,0.68915175,141.96,141.94,7.04505224]
[1768310839727,7.04343279,141.98,141.95,3.17662829]
[1768310840028,0.68915175,141.97,141.94,7.04505224]
[1768310840629,0.68915175,141.97,141.94,10.22168053]
[1768310842626,0.68915175,141.97,141.93,10.22235505]
[1768310843516,0.65915176,141.97,141.93,10.25235504]
[1768310843715,0.65915176,141.97,141.94,3.17662829]
[1768310844729,0.62915177,141.97,141.94,3.17662829]
[1768310845231,0.62915177,141.97,141.94,10.2216479]
[1768310845932,0.62915177,141.97,141.94,10.28164788]
[1768310846430,0.59915178,141.97,141.95,3.17662829]
[1768310847937,0.59915178,141.97,141.94,0.05999998]
[1768310848233,0.59915178,141.97,141.94,3.23662827]
[1768310848637,0.68915175,141.96,141.92,7.04604761]
[1768310848828,10.22070995,141.97,141.91,0.08999997]
[1768310848829,0.68915175,141.94,141.91,7.13670663]
[1768310849735,0.68915175,141.95,141.92,7.0461169]
[1768310851846,0.68915175,141.95,141.92,10.22274519]
[1768310852644,0.68915175,141.95,141.92,10.31274516]
[1768310852939,0.65915176,141.95,141.92,10.22274519]
[1768310853141,0.65915176,141.95,141.92,7.0461169]
[1768310853345,0.65915176,141.95,141.92,10.22274519]
[1768310853519,0.65915176,141.95,141.92,3.17662829]
[1768310853726,0.65915176,141.95,141.91,10.31314165]
[1768310854350,0.65915176,141.95,141.92,7.04616072]
[1768310855346,0.65915176,141.95,141.92,3.17662829]
[1768310859349,0.62915177,141.95,141.92,3.17662829]
[1768310859854,7.67398261,141.95,141.92,3.17662829]
[1768310860653,0.62915177,141.95,141.92,10.22275366]
[1768310861154,0.59915178,141.95,141.92,10.22275366]
[1768310862852,0.59915178,141.95,141.93,3.17662829]
[1768310863147,0.6864002,141.96,141.93,3.17662829]
[1768310863345,0.6864002,141.96,141.94,3.17662829]
[1768310864257,0.6864002,141.96,141.93,10.22235294]
[1768310867451,0.6864002,141.96,141.93,7.04572465]
[1768310867646,0.6864002,141.95,141.92,10.40263876]
[1768310867853,0.6864002,141.95,141.92,10.22263882]
[1768310868453,0.6864002,141.95,141.91,10.40313287]
[1768310868646,0.6864002,141.95,141.91,10.22313293]
[1768310868954,0.6864002,141.95,141.92,3.17662829]
[1768310869144,0.6864002,141.95,141.92,10.22275094]
[1768310869344,0.6864002,141.95,141.93,3.17662829]
[1768310870160,0.6564002,141.95,141.93,3.17662829]
[1768310871561,0.6564002,141.95,141.92,7.04612265]
[1768310871857,0.6564002,141.95,141.94,3.17662829]
[1768310872455,17.60866294,141.98,141.94,3.17662829]
[1768310872656,0.6864002,141.96,141.94,3.17662829]
[1768310872860,0.65640021,141.96,141.94,3.17662829]
[1768310875044,0.65640021,141.96,141.93,7.04564741]
[1768310875255,0.65640021,141.96,141.93,10.2222757]
[1768310875640,0.65640021,141.96,141.93,10.46227563]
[1768310875844,0.65640021,141.96,141.93,10.2222757]
[1768310879366,0.62640022,141.96,141.93,10.2222757]
[1768310882555,0.6864002,141.95,141.92,10.22277656]
[1768310883669,0.6864002,141.95,141.92,7.04614827]
[1768310883845,0.6864002,141.95,141.92,10.22277656]
[1768310884346,0.6864002,141.95,141.92,7.04614827]
[1768310884746,0.6864002,141.95,141.92,10.22277656]
[1768310884944,0.6864002,141.95,141.88,64.57662829]
[1768310884945,0.67052828,141.93,141.88,7.31798361]
[1768310885274,3.17662829,141.9,141.84,0.68467368]
[1768310885570,7.92161351,141.92,141.83,7.05040751]
[1768310885571,2.03562429,141.88,141.83,7.05040751]
[1768310885753,2.03562429,141.88,141.83,9.77070548]
[1768310888350,24.66412576,141.91,141.84,9.08561172]
[1768310888567,24.66412576,141.91,141.84,7.04998743]
[1768310888768,2.03562429,141.89,141.84,9.08561172]
[1768310889363,0.67052828,141.88,141.84,9.08561172]
[1768310889556,0.67052828,141.87,141.84,9.08561172]
[1768310889753,0.67052828,141.89,141.85,2.03562429]
[1768310890675,17.61491492,141.93,141.87,2.03562429]
[1768310890878,17.61491492,141.93,141.84,26.71110523]
[1768310890879,19.65053921,141.93,141.88,2.03562429]
[1768310891174,7.04622322,141.92,141.89,2.03562429]
[1768310891368,7.04622322,141.92,141.88,2.03562429]
[1768310891570,7.04586889,141.93,141.89,2.03562429]
[1768310891768,9.08149318,141.93,141.88,2.03562429]
[1768310892265,7.04586889,141.93,141.89,2.03562429]
[1768310892478,9.08149318,141.93,141.88,2.03562429]
[1768310893052,2.03562429,141.92,141.87,2.03562429]
[1768310893253,9.08149318,141.93,141.84,26.71110523]
[1768310893466,9.08149318,141.93,141.84,24.67548094]
[1768310893767,9.08149318,141.93,141.87,2.03562429]
[1768310893976,9.08149318,141.93,141.88,2.03562429]
[1768310894179,7.04586889,141.93,141.88,9.08350358]
[1768310894753,9.08149318,141.93,141.88,7.04787929]
[1768310894976,2.03562429,141.92,141.86,7.0492033]
[1768310895273,2.03562429,141.91,141.86,9.08482759]
[1768310898275,24.65656921,141.95,141.86,9.08482759]
[1768310898467,2.03562429,141.91,141.86,9.08482759]
[1768310899376,9.08255079,141.91,141.86,9.08482759]
[1768310899761,9.08255079,141.91,141.86,7.0492033]
[1768310899961,9.08255079,141.91,141.86,9.08482759]
[1768310900368,7.04643205,141.92,141.88,2.03562429]
[1768310901077,7.04583134,141.93,141.88,2.03562429]
[1768310901260,7.04583134,141.93,141.89,2.03562429]
[1768310901463,7.04583134,141.93,141.89,9.08329689]
[1768310903587,7.04583134,141.93,141.89,2.03562429]
[1768310903787,9.08145563,141.93,141.88,9.08360736]
[1768310904786,2.03562429,141.92,141.87,7.04852009]
[1768310905168,2.03562429,141.92,141.87,9.08414438]
[1768310905363,2.03562429,141.91,141.83,85.70563965]
[1768310905568,7.04820975,141.88,141.84,2.03562429]
[1768310906572,7.04820975,141.88,141.81,31.36036738]
[1768310906783,7.04820975,141.88,141.84,9.08569618]
[1768310907789,9.08355351,141.89,141.84,9.08569618]
[1768310908182,7.04792922,141.89,141.85,2.03562429]
[1768310908364,7.04792922,141.89,141.84,7.05007189]
[1768310911194,59.8886775,141.93,141.83,17.6262172]
[1768310911369,4.72214133,141.92,141.83,17.6262172]
[1768310911695,59.8886775,141.93,141.83,17.6262172]
[1768310911993,4.72213727,141.92,141.83,17.6262172]
[1768310912173,59.8886775,141.93,141.83,17.6262172]
[1768310912374,24.66351912,141.91,141.83,17.6262172]
[1768310914994,7.04572676,141.93,141.83,17.6262172]
[1768310915579,7.04572676,141.93,141.83,79.0262172]
[1768310916773,17.61352403,141.94,141.83,121.33038415]
[1768310917588,7.04473406,141.95,141.84,11.6438717]
[1768310917801,7.04473406,141.95,141.84,22.25820393]
[1768310918176,7.04446877,141.96,141.88,6.6801107]
[1768310918778,24.64615167,142.01,141.89,24.66699555]
[1768310918987,9.98145298,142.0,141.89,24.66699555]
[1768310919179,4.72787935,141.99,141.89,24.66699555]
[1768310919380,24.64615167,142.01,141.89,24.66699555]
[1768310919702,9.98162699,142.0,141.89,24.66699555]
[1768310919902,29.37757894,141.99,141.89,24.66699555]
[1768310920103,24.6496232,141.99,141.89,24.66699555]
[1768310921204,24.64615167,142.01,141.89,24.66699555]
[1768310921405,9.98197089,142.0,141.89,24.66699555]
[1768310921613,4.72811467,141.99,141.89,24.66699555]
[1768310921799,24.64615167,142.01,141.89,24.66699555]
[1768310922108,4.72846411,142.0,141.89,24.66699555]
[1768310922309,24.64615167,142.01,141.89,24.66699555]
[1768310922611,4.72801721,142.0,141.89,24.66699555]
[1768310922811,24.64615167,142.01,141.89,24.66699555]
[1768310923007,7.04274948,141.99,141.89,24.66699555]
[1768310924109,17.60671634,142.0,141.89,24.66699555]
[1768310924686,17.60671634,142.0,141.89,121.30556063]
[1768310925002,17.60671634,142.0,141.89,131.91989286]
[1768310926706,17.60671634,142.0,141.89,35.28132778]
[1768310927018,4.7247119,141.99,141.89,35.28132778]
[1768310927194,17.60671634,142.0,141.89,35.28132778]
[1768310927394,4.72323022,141.99,141.89,24.66699555]
[1768310927698,17.60671634,142.0,141.89,24.66699555]
[1768310929899,7.04324552,141.98,141.89,24.66699555]
[1768310931621,59.85493978,142.01,141.89,24.66699555]
[1768310931917,5.24616386,142.0,141.89,24.66699555]
[1768310932120,59.85493978,142.01,141.89,24.66699555]
[1768310932321,5.24601388,142.0,141.89,24.66699555]
[1768310932613,59.85493978,142.01,141.89,24.66699555]
[1768310932792,24.6496232,141.99,141.89,24.66699555]
[1768310933605,103.4,141.98,141.89,24.66699555]
[1768310934505,7.04374163,141.97,141.87,31.35058366]
[1768310935603,24.65309571,141.97,141.87,31.35058366]
[1768310936918,24.65309571,141.97,141.87,66.59411647]
[1768310937527,24.65309571,141.97,141.87,127.99411647]
[1768310937819,24.65309571,141.97,141.87,92.75058366]
[1768310940227,7.04473406,141.95,141.87,31.35058366]
[1768310941130,110.44430762,141.96,141.87,31.35058366]
[1768310942550,110.44430762,141.96,141.87,66.59411647]
[1768310943329,103.4,141.96,141.87,66.59411647]
[1768310943629,103.4,141.96,141.87,76.14678203]
[1768310946227,17.60764844,141.99,141.87,137.54678203]
[1768310947131,7.04225352,142.0,141.88,4.963761]
[1768310947421,7.04225352,142.0,141.88,29.51642656]
[1768310947725,7.04225352,142.0,141.91,6.6801107]
[1768310948532,24.64788732,142.0,141.92,24.66178128]
[1768310949627,7.04225352,142.0,141.92,24.66178128]
[1768310952226,7.04175762,142.01,141.92,24.66178128]
[1768310952424,24.64615167,142.01,141.92,24.66178128]
[1768310952626,7.04175762,142.01,141.92,24.66178128]
[1768310953608,7.04175762,142.01,141.92,34.21444684]
[1768310955609,7.04175762,142.01,141.93,9.55266556]
[1768310955808,0.1,142.02,141.94,6.6801107]
[1768310956004,0.1,142.02,141.95,9.55266556]
[1768310956710,0.1,142.02,141.96,24.65483234]
[1768310959340,7.14129025,142.02,141.96,24.65483234]
[1768310959521,0.1,142.02,141.96,24.65483234]
[1768310961225,7.14134769,142.02,141.96,7.04423781]
[1768310961425,7.14134769,142.02,141.96,6.98423782]
[1768310962566,24.74450217,142.02,141.95,7.04473406]
[1768310962915,24.74450217,142.02,141.94,7.04511381]
[1768310964447,7.14134769,142.02,141.94,24.65818975]
[1768310965344,7.14134769,142.02,141.94,17.61307594]
[1768310968648,0.1,142.02,141.94,17.61307594]
[1768310969665,0.1,142.02,141.95,6.6801107]
[1768310969847,0.1,142.03,141.96,31.33494304]
[1768310970541,0.1,142.05,141.96,70.8876086]
[1768310970854,0.1,142.11,142.04,6.6801107]
[1768310971642,7.03548171,142.14,142.04,6.6801107]
[1768310971844,7.03548171,142.14,142.05,24.63921153]
[1768310972055,7.13582024,142.13,142.05,24.63921153]
[1768310973362,0.1,142.13,142.04,16.23277626]
[1768310974958,0.1,142.13,142.04,6.6801107]
[1768310975454,0.1,142.13,142.05,6.6801107]
[1768310976167,0.1,142.13,142.05,16.23277626]
[1768310977263,0.1,142.13,142.06,9.55266556]
[1768310977437,0.1,142.13,142.06,6.6801107]
[1768310977938,0.1,142.13,142.06,15.86197118]
[1768310978142,0.1,142.13,142.07,9.55266556]
[1768310978549,0.1,142.13,142.01,6.85412484]
[1768310978759,0.1,142.13,142.01,21.85412484]
[1768310978961,0.1,142.13,142.04,6.6801107]
[1768310979964,0.1,142.13,142.07,6.6801107]
[1768310980458,0.1,142.17,142.13,6.6801107]
[1768310980864,0.1,142.17,142.13,6.62011088]
[1768310981063,7.02936823,142.27,142.13,6.62011088]
[1768310981459,7.02936823,142.27,142.13,6.56011095]
[1768310984352,7.02936823,142.27,142.16,6.6801107]
[1768310989158,7.03017395,142.25,142.1,9.77005445]
[1768310989356,7.03017395,142.25,142.1,16.45016515]
[1768310989571,7.03017395,142.25,142.1,9.77005445]
[1768310989956,7.03017395,142.25,142.1,16.45016515]
[1768310990150,7.03116529,142.23,142.1,9.77005445]
[1768310990351,7.03116529,142.23,142.1,16.45016515]
[1768310993670,7.03116529,142.23,142.1,6.6801107]
[1768310996077,7.0323488,142.2,142.04,47.5999381]
[1768310996472,7.0323488,142.2,142.07,6.6801107]
[1768310998572,7.03120413,142.23,142.07,6.6801107]
[1768310998769,7.03120413,142.23,142.07,23.61601303]
[1768310998979,7.03120413,142.23,142.08,9.77005445]
[1768310999181,7.03120413,142.23,142.07,13.71843033]
[1768311000384,6.9490078,142.21,142.08,4.963761]
[1768311000583,35.13157274,142.33,142.08,4.963761]
[1768311000584,15.05325586,142.43,142.17,35.34743934]
[1768311000887,15.05325586,142.43,142.36,3.66754245]
[1768311000888,2.49600087,142.4,142.36,3.66754245]
[1768311001100,2.49600087,142.4,142.36,17.84616305]
[1768311001263,7.33372766,142.43,142.36,17.84616305]
[1768311001583,0.4436542,142.5,142.36,2.84616305]
[1768311002193,12.84,142.47,142.39,15.0]
[1768311002402,0.4436542,142.5,142.39,15.0]
[1768311002691,4.963761,142.49,142.36,7.02414967]
[1768311002860,8.58834742,142.53,142.39,6.6801107]
[1768311003063,35.27431973,142.81,142.4,27.92686062]
[1768311003297,258.10444874,143.23,142.59,6.6801107]
[1768311003298,35.43573933,142.8,142.59,6.6801107]
[1768311003592,2.67123978,142.82,142.6,33.03350606]
[1768311003795,1e-08,142.82,142.81,3.65493913]
[1768311004099,12.82000001,142.82,142.61,15.0]
[1768311004306,7.00231076,142.81,142.71,15.0]
[1768311004473,7.00231076,142.81,142.65,15.0]
[1768311004671,7.00231076,142.81,142.59,15.0]
[1768311004972,24.50808766,142.81,142.59,15.0]
[1768311005177,24.50808766,142.81,142.62,6.6801107]
[1768311005496,3.65687465,142.8,142.58,6.6801107]
[1768311005677,35.29448649,142.79,142.52,15.0]
[1768311005879,3.65687465,142.8,142.66,6.6801107]
[1768311006067,7.00329154,142.79,142.66,6.6801107]
[1768311006265,7.00218233,142.82,142.54,17.53772263]
[1768311006469,1e-08,142.82,142.6,15.0]
[1768311006662,1e-08,142.82,142.69,6.6801107]
[1768311006865,61.71,142.95,142.71,6.6801107]
[1768311007095,6.99594235,142.94,142.71,6.6801107]
[1768311007267,6.99594235,142.94,142.78,6.6801107]
[1768311007603,6.99594235,142.94,142.78,15.0]
[1768311007763,6.99594235,142.94,142.78,6.6801107]
[1768311007969,61.71,142.95,142.78,6.6801107]
[1768311008165,61.71,142.95,142.82,6.6801107]
[1768311008396,61.71,142.95,142.82,21.6801107]
[1768311008696,3.65126489,142.94,142.79,6.6801107]
[1768311008871,6.6801107,142.92,142.7,15.0]
[1768311009068,6.6801107,142.88,142.6,34.0007779]
[1768311009288,6.6801107,142.88,142.58,34.34980083]
[1768311009479,16.80383326,142.88,142.58,34.34980083]
[1768311009662,6.6801107,142.88,142.59,7.0126494]
[1768311009863,6.6801107,142.88,142.67,45.13730039]
[1768311010069,24.49779519,142.87,142.67,45.13730039]
[1768311010369,6.99937005,142.87,142.71,6.6801107]
[1768311010766,61.21,142.95,142.76,15.0]
[1768311010988,6.99632055,142.94,142.78,6.6801107]
[1768311011193,64.86258524,142.95,142.81,6.6801107]
[1768311011398,61.21,142.95,142.82,6.6801107]
[1768311011611,61.21,142.95,142.75,20.7616388]
[1768311011612,61.21,142.95,142.87,6.6801107]
[1768311011901,33.245,142.95,142.87,6.6801107]
[1768311012074,33.245,142.95,142.86,6.6801107]
[1768311012393,33.245,142.95,142.85,6.6801107]
[1768311012598,33.245,142.95,142.76,15.0]
[1768311012890,6.6801107,142.92,142.71,30.0]
[1768311013085,57.72910978,142.95,142.74,49.56484635]
[1768311013402,57.72910978,142.95,142.74,64.56484635]
[1768311013570,33.245,142.95,142.78,49.11872804]
[1768311013766,33.245,142.95,142.81,6.6801107]
[1768311013988,40.24084439,142.95,142.79,6.6801107]
[1768311014295,33.245,142.95,142.79,21.6801107]
[1768311014501,33.245,142.95,142.8,6.6801107]
[1768311014698,6.99594235,142.94,142.74,34.56484635]
[1768311014868,33.245,142.95,142.77,64.0452647]
[1768311015071,6.6801107,142.93,142.77,34.0452647]
[1768311015270,6.6801107,142.91,142.7,84.95342189]
[1768311015866,21.6801107,142.9,142.58,34.34980083]
[1768311016066,6.6801107,142.89,142.58,49.34980083]
[1768311016295,6.6801107,142.85,142.57,54.5202975]
[1768311016499,4.963761,142.8,142.57,54.5202975]
[1768311017376,4.963761,142.8,142.6,6.6801107]
[1768311017578,11.6438717,142.8,142.57,54.5202975]